[Event "GER-chT Youth Countries 2020"]
[Site "Berlin"]
[Date "2020.10.02"]
[Round "4"]
[White "Junker, Magnus"]
[Black "Hagenbeck-Huebert, Ben"]
[Result "1-0"]
[ECO "C55"]
[WhiteElo "2093"]
[BlackElo "1749"]
[Annotator "ChessBase"]
[PlyCount "107"]
[EventDate "2020.09.30"]
[EventType "team-tourn"]
[EventRounds "7"]
[EventCountry "GER"]
[SourceTitle "playchess.com"]
[Source "ChessBase"]
[SourceQuality "1"]
[TimeControl "30/5400+30:0"]

1. e4 {[%emt 0:00:00]} e5 {[%emt 0:00:00]} 2. Nf3 {[%emt 0:00:00]} Nc6 {[%emt 0:00:00]} 3. d4 {[%emt 0:00:00]} exd4 {[%emt 0:00:07]} 4. Bc4 {[%emt 0:00:00]} Nf6 {[%emt 0:00:50]} 5. e5 {[%emt 0:00:11]} d5 {[%emt 0:01:03]} 6. Bb5 {[%emt 0:00:54]} Ne4 {[%emt 0:01:12]} 7. Nxd4 {[%emt 0:00:06]} Bd7 {[%emt 0:00:35]} 8. Bxc6 {[%emt 0:00:13]} bxc6 {[%emt 0:00:09]} 9. O-O {[%emt 0:01:08]} Bc5 {[%emt 0:04:56]} 10. Be3 {[%emt 0:00:52]} O-O {[%emt 0:08:35]} 11. f3 {[%emt 0:01:59]} Ng5 {[%emt 0:06:25]} 12. f4 {[%emt 0:00:14]} Ne4 {[%emt 0:02:27]} 13. Nd2 {[%emt 0:00:16]} Nxd2 {[%emt 0:03:35]} 14. Qxd2 {[%emt 0:00:04]} f6 {[%emt 0:00:49]} 15. Rae1 {[%emt 0:06:58]} fxe5 {[%emt 0:03:53]} 16. fxe5 {[%emt 0:00:06]} Rxf1+ {[%emt 0:01:31]} 17. Rxf1 {[%emt 0:00:30]} Qe7 {[%emt 0:03:13]} 18. e6 {[%emt 0:03:42]} Bxd4 {[%emt 0:02:28]} 19. Bxd4 {[%emt 0:00:06]} Bxe6 {[%emt 0:05:01]} 20. Qe3 {[%emt 0:01:22]} a6 {[%emt 0:01:28]} 21. Rf3 {[%emt 0:01:07]} c5 {[%emt 0:09:09]} 22. Bxc5 {[%emt 0:01:01]} Qd7 {[%emt 0:01:13]} 23. Qf4 {[%emt 0:01:35]} Bf7 {[%emt 0:02:15]} 24. h4 {[%emt 0:01:42]} Re8 {[%emt 0:01:54]} 25. Rg3 {[%emt 0:02:35]} Bg6 {[%emt 0:06:59]} 26. c3 {[%emt 0:06:44]} Qf7 {[%emt 0:05:29]} 27. Qa4 {[%emt 0:01:14]} Re1+ {[%emt 0:02:46]} 28. Kh2 {[%emt 0:00:07]} Re4 {[%emt 0:06:38]} 29. Qxa6 {[%emt 0:00:12]} Rxh4+ {[%emt 0:00:38]} 30. Kg1 {[%emt 0:00:08]} Qe8 {[%emt 0:03:51]} 31. Rf3 {[%emt 1:32:00]} Bf7 {[%emt 1:30:10]} 32. b4 {[%emt 0:01:29]} Re4 {[%emt 0:01:13]} 33. a4 {[%emt 0:01:22]} Re1+ {[%emt 0:00:46]} 34. Rf1 {[%emt 0:00:06]} Rxf1+ {[%emt 0:01:02]} 35. Kxf1 {[%emt 0:00:10]} Be6 {[%emt 0:00:44]} 36. Bf2 {[%emt 0:05:58]} Bd7 {[%emt 0:02:18]} 37. b5 {[%emt 0:01:00]} Qe4 {[%emt 0:00:36]} 38. Kg1 {[%emt 0:08:46]} Qd3 {[%emt 0:02:30]} 39. Qa8+ {[%emt 0:01:42]} Kf7 {[%emt 0:00:18]} 40. Qd8 {[%emt 0:00:14]} Qd1+ {[%emt 0:00:45]} 41. Kh2 {[%emt 0:00:06]} Qh5+ {[%emt 0:00:27]} 42. Bh4 {[%emt 0:01:10]} Qe5+ {[%emt 0:02:48]} 43. Kh1 {[%emt 0:00:29]} Qd6 {[%emt 0:01:38]} 44. Kg1 {[%emt 0:03:16]} h6 {[%emt 0:00:59]} 45. Bf2 {[%emt 0:01:34]} Kg6 {[%emt 0:03:31]} 46. Bd4 {[%emt 0:00:31]} Qe6 {[%emt 0:00:41]} 47. Qh4 {[%emt 0:02:39]} Qg4 {[%emt 0:00:00]} 48. Qe1 {[%emt 0:00:00]} Qe6 {[%emt 0:00:00]} 49. Qa1 {[%emt 0:00:00]} Qe2 {[%emt 0:00:00]} 50. c4 {[%emt 0:00:00]} Qxc4 {[%emt 0:00:00]} 51. Bxg7 {[%emt 0:00:00]} h5 {[%emt 0:00:00]} 52. Qf6+ {[%emt 0:00:00]} Kh7 {[%emt 0:00:00]} 53. Bh6 {[%emt 0:00:00]} Qg4 {[%emt 0:00:00]} 54. Bf4 {[%emt 0:00:00]} 1-0

[Event "GER-chT Youth Countries 2020"]
[Site "Berlin"]
[Date "2020.10.02"]
[Round "4"]
[White "Gallasch, Jonas"]
[Black "Grossmann, Piet"]
[Result "1/2-1/2"]
[ECO "E16"]
[WhiteElo "2090"]
[BlackElo "1849"]
[Annotator "ChessBase"]
[PlyCount "93"]
[EventDate "2020.09.30"]
[EventType "team-tourn"]
[EventRounds "7"]
[EventCountry "GER"]
[SourceTitle "playchess.com"]
[Source "ChessBase"]
[SourceQuality "1"]
[TimeControl "30/5400+30:0"]

1. d4 Nf6 2. c4 e6 3. Nf3 Bb4+ 4. Bd2 Qe7 5. g3 O-O 6. Bg2 Bxd2+ 7. Qxd2 d6 8. Nc3 Nbd7 9. O-O e5 10. e4 Re8 {[%emt 0:29:53]} 11. d5 {[%emt 0:14:23]} a5 {[%emt 0:00:30]} 12. Ne1 {[%emt 0:04:12]} Nc5 {[%emt 0:00:13]} 13. Nd3 {[%emt 0:00:22]} Nxd3 {[%emt 0:30:52]} 14. Qxd3 {[%emt 0:00:18]} Nh5 {[%emt 0:00:17]} 15. Rae1 {[%emt 0:12:47]} Qg5 {[%emt 0:04:16]} 16. Nb5 {[%emt 0:05:13]} Re7 {[%emt 0:08:22]} 17. Qe3 {[%emt 0:11:46]} Qxe3 {[%emt 0:06:21]} 18. Rxe3 {[%emt 0:00:06]} Nf6 {[%emt 0:03:28]} 19. f4 {[%emt 0:04:59]} Ne8 {[%emt 0:05:48]} 20. Rd1 {[%emt 0:21:04]} Bd7 {[%emt 0:02:32]} 21. Ra3 {[%emt 0:01:40]} Bxb5 {[%emt 0:03:39]} 22. cxb5 {[%emt 0:00:04]} Nf6 {[%emt 0:00:51]} 23. f5 {[%emt 0:02:20]} Ree8 {[%emt 0:02:14]} 24. Rc1 {[%emt 0:03:08]} Rec8 {[%emt 0:00:26]} 25. Rac3 {[%emt 0:00:30]} Ne8 {[%emt 0:01:17]} 26. b6 {[%emt 0:00:17]} Ra6 {[%emt 0:01:02]} 27. bxc7 {[%emt 0:03:22]} Ra7 {[%emt 0:00:08]} 28. Bf1 {[%emt 0:03:57]} Kf8 {[%emt 0:00:12]} 29. f6 {[%emt 0:04:05]} b6 {[%emt 0:01:33]} 30. fxg7+ {[%emt 0:02:33]} Kxg7 31. Bb5 {[%emt 1:31:50]} Nf6 {[%emt 1:31:02]} 32. Rc4 {[%emt 0:01:11]} Kf8 {[%emt 0:00:31]} 33. Kf2 {[%emt 0:01:11]} Ke7 {[%emt 0:00:02]} 34. Kf3 {[%emt 0:00:44]} h5 {[%emt 0:00:31]} 35. R1c3 {[%emt 0:01:30]} Ne8 {[%emt 0:00:57]} 36. Bxe8 {[%emt 0:00:23]} Kxe8 {[%emt 0:00:01]} 37. Rc6 {[%emt 0:00:08]} Kd7 {[%emt 0:00:30]} 38. Rxb6 {[%emt 0:00:30]} Raxc7 {[%emt 0:00:30]} 39. Rxc7+ {[%emt 0:01:20]} Rxc7 {[%emt 0:00:00]} 40. Ra6 {[%emt 0:00:07]} Rc2 {[%emt 0:01:30]} 41. Rxa5 {[%emt 0:00:54]} Rxb2 {[%emt 0:00:09]} 42. Ra7+ {[%emt 0:00:18]} Ke8 {[%emt 0:00:07]} 43. h4 {[%emt 0:00:43]} Rc2 {[%emt 0:00:00]} 44. Ra3 {[%emt 0:00:00]} Ke7 {[%emt 0:00:00]} 45. g4 {[%emt 0:00:00]} hxg4+ {[%emt 0:00:00]} 46. Kxg4 {[%emt 0:00:00]} Kf6 {[%emt 0:00:00]} 47. Ra6 {[%emt 0:00:00]} 1/2-1/2

[Event "GER-chT Youth Countries 2020"]
[Site "Berlin"]
[Date "2020.10.02"]
[Round "4"]
[White "Jeschke, Jan"]
[Black "Richter, Nils"]
[Result "1/2-1/2"]
[ECO "B12"]
[WhiteElo "2043"]
[BlackElo "2307"]
[Annotator "ChessBase"]
[PlyCount "95"]
[EventDate "2020.09.30"]
[EventType "team-tourn"]
[EventRounds "7"]
[EventCountry "GER"]
[SourceTitle "playchess.com"]
[Source "ChessBase"]
[SourceQuality "1"]
[TimeControl "30/5400+30:0"]

1. e4 {[%emt 0:00:00]} c6 {[%emt 0:00:00]} 2. d4 {[%emt 0:00:00]} d5 {[%emt 0:00:00]} 3. e5 {[%emt 0:00:55]} c5 {[%emt 0:00:00]} 4. dxc5 {[%emt 0:01:32]} Nc6 {[%emt 0:00:09]} 5. Nf3 {[%emt 0:00:56]} Bg4 {[%emt 0:00:58]} 6. Bb5 {[%emt 0:03:56]} Qa5+ {[%emt 0:01:33]} 7. Nc3 {[%emt 0:00:15]} e6 {[%emt 0:00:09]} 8. Be3 {[%emt 0:13:58]} Nge7 {[%emt 0:02:07]} 9. a3 {[%emt 0:20:01]} O-O-O {[%emt 0:01:07]} 10. Bxc6 {[%emt 0:04:16]} Nxc6 {[%emt 0:01:21]} 11. b4 {[%emt 0:00:32]} Bxf3 {[%emt 0:00:33]} 12. gxf3 {[%emt 0:02:41]} Qc7 {[%emt 0:00:17]} 13. f4 {[%emt 0:06:27]} d4 {[%emt 0:09:40]} 14. Nb5 {[%emt 0:00:13]} dxe3 {[%emt 0:00:07]} 15. Nxc7 {[%emt 0:00:41]} exf2+ {[%emt 0:00:49]} 16. Kxf2 {[%emt 0:00:51]} Rxd1 {[%emt 0:00:09]} 17. Rhxd1 {[%emt 0:01:47]} Kxc7 {[%emt 0:00:10]} 18. Kf3 {[%emt 0:06:32]} Be7 {[%emt 0:05:11]} 19. Ke4 {[%emt 0:01:40]} g6 {[%emt 0:05:52]} 20. c3 {[%emt 0:03:56]} Rd8 {[%emt 0:11:21]} 21. a4 {[%emt 0:04:04]} Rxd1 {[%emt 0:15:14]} 22. Rxd1 {[%emt 0:00:06]} Bf8 {[%emt 0:00:56]} 23. a5 {[%emt 0:13:52]} Ne7 {[%emt 0:07:40]} 24. c4 {[%emt 0:01:28]} Nc6 {[%emt 0:02:34]} 25. Rb1 {[%emt 0:01:14]} Bh6 {[%emt 0:05:59]} 26. h4 {[%emt 0:06:32]} Bf8 {[%emt 0:01:35]} 27. h5 {[%emt 0:00:08]} gxh5 {[%emt 0:00:42]} 28. f5 {[%emt 0:00:45]} Ne7 {[%emt 0:02:29]} 29. fxe6 {[%emt 0:00:30]} fxe6 {[%emt 0:00:02]} 30. a6 {[%emt 0:03:10]} bxa6 {[%emt 0:03:28]} 31. Ra1 {[%emt 1:30:06]} Kb7 {[%emt 1:36:58]} 32. Rd1 {[%emt 0:00:13]} Kc7 {[%emt 0:00:46]} 33. Ra1 {[%emt 0:00:06]} Nc6 {[%emt 0:02:38]} 34. Rxa6 {[%emt 0:01:38]} Nxb4 {[%emt 0:01:03]} 35. Rxa7+ {[%emt 0:00:47]} Kc6 {[%emt 0:00:30]} 36. Rxh7 {[%emt 0:00:22]} Na6 {[%emt 0:06:03]} 37. Rxh5 {[%emt 0:01:02]} Nxc5+ {[%emt 0:00:01]} 38. Kd4 {[%emt 0:01:00]} Nd7 {[%emt 0:01:01]} 39. Rh7 {[%emt 0:00:23]} Ba3 {[%emt 0:00:53]} 40. Ke4 {[%emt 0:00:30]} Bb2 {[%emt 0:00:41]} 41. Re7 {[%emt 0:00:48]} Nc5+ {[%emt 0:01:04]} 42. Kf4 {[%emt 0:00:31]} Bc3 {[%emt 0:02:00]} 43. Rh7 {[%emt 0:00:00]} Nd7 {[%emt 0:00:00]} 44. Ke4 {[%emt 0:00:00]} Nc5+ {[%emt 0:00:00]} 45. Kf4 {[%emt 0:00:00]} Nd3+ {[%emt 0:00:00]} 46. Ke4 {[%emt 0:00:00]} Nxe5 {[%emt 0:00:00]} 47. Rh3 {[%emt 0:00:00]} Bb2 {[%emt 0:00:00]} 48. Rh2 {[%emt 0:00:00]} 1/2-1/2

[Event "GER-chT Youth Countries 2020"]
[Site "Berlin"]
[Date "2020.10.02"]
[Round "4"]
[White "Ermitsch, Magnus"]
[Black "Lesny, Florian"]
[Result "1/2-1/2"]
[ECO "B53"]
[WhiteElo "2025"]
[BlackElo "2178"]
[Annotator "ChessBase"]
[PlyCount "45"]
[EventDate "2020.09.30"]
[EventType "team-tourn"]
[EventRounds "7"]
[EventCountry "GER"]
[SourceTitle "playchess.com"]
[Source "ChessBase"]
[SourceQuality "1"]
[TimeControl "30/5400+30:0"]

1. e4 {[%emt 0:00:06]} c5 {[%emt 0:00:00]} 2. Nf3 {[%emt 0:00:32]} d6 {[%emt 0:00:00]} 3. d4 {[%emt 0:01:26]} cxd4 {[%emt 0:00:00]} 4. Qxd4 {[%emt 0:01:04]} Nc6 {[%emt 0:00:24]} 5. Bb5 {[%emt 0:00:37]} Bd7 {[%emt 0:00:10]} 6. Bxc6 {[%emt 0:01:10]} Bxc6 {[%emt 0:00:07]} 7. Nc3 {[%emt 0:01:49]} Nf6 {[%emt 0:00:24]} 8. Bg5 {[%emt 0:01:10]} e6 {[%emt 0:00:31]} 9. O-O-O {[%emt 0:00:49]} Be7 {[%emt 0:01:28]} 10. Qd3 {[%emt 0:02:41]} Qa5 {[%emt 0:04:58]} 11. h4 {[%emt 0:00:53]} h6 {[%emt 0:01:49]} 12. Bxf6 {[%emt 0:01:45]} Bxf6 {[%emt 0:00:43]} 13. Nd4 {[%emt 0:01:45]} O-O {[%emt 0:02:21]} 14. f4 {[%emt 0:02:51]} Qb6 {[%emt 0:02:24]} 15. Nce2 {[%emt 0:14:41]} e5 {[%emt 0:14:51]} 16. Nf5 {[%emt 0:24:51]} Bb5 {[%emt 0:12:51]} 17. Qf3 {[%emt 0:11:07]} Bxe2 {[%emt 0:06:34]} 18. Qxe2 {[%emt 0:00:19]} exf4 {[%emt 0:00:27]} 19. c3 {[%emt 0:01:08]} Be5 {[%emt 0:01:58]} 20. Qg4 {[%emt 0:08:16]} Kh7 {[%emt 0:16:29]} 21. h5 {[%emt 0:02:00]} Qc7 {[%emt 0:05:56]} 22. Rd5 {[%emt 0:03:30]} Rg8 {[%emt 0:04:51]} 23. Rhd1 {[%emt 0:03:20]} 1/2-1/2

[Event "GER-chT Youth Countries 2020"]
[Site "Berlin"]
[Date "2020.10.02"]
[Round "4"]
[White "Pikalow, Michael"]
[Black "Halabi, Ibrahim"]
[Result "0-1"]
[ECO "B90"]
[WhiteElo "2021"]
[BlackElo "1895"]
[Annotator "ChessBase"]
[PlyCount "84"]
[EventDate "2020.09.30"]
[EventType "team-tourn"]
[EventRounds "7"]
[EventCountry "GER"]
[SourceTitle "playchess.com"]
[Source "ChessBase"]
[SourceQuality "1"]
[TimeControl "30/5400+30:0"]

1. e4 {[%emt 0:00:00]} c5 {[%emt 0:00:00]} 2. Nf3 {[%emt 0:00:00]} d6 {[%emt 0:00:00]} 3. Nc3 {[%emt 0:00:00]} Nf6 4. d4 {[%emt 0:00:00]} cxd4 {[%emt 0:00:00]} 5. Nxd4 {[%emt 0:00:00]} a6 {[%emt 0:00:05]} 6. Be3 {[%emt 0:00:00]} e5 {[%emt 0:00:04]} 7. Nb3 {[%emt 0:00:00]} Be6 {[%emt 0:00:05]} 8. f3 {[%emt 0:00:04]} Be7 {[%emt 0:00:05]} 9. Qd2 {[%emt 0:00:03]} O-O {[%emt 0:00:11]} 10. O-O-O Nbd7 {[%emt 0:00:14]} 11. g4 {[%emt 0:00:07]} b5 {[%emt 0:00:18]} 12. g5 b4 {[%emt 0:00:42]} 13. gxf6 {[%emt 0:00:12]} bxc3 {[%emt 0:00:04]} 14. Qxc3 {[%emt 0:00:04]} Nxf6 15. Na5 Rc8 {[%emt 0:00:50]} 16. Nc6 {[%emt 0:00:11]} Qc7 {[%emt 0:00:13]} 17. Nxe7+ {[%emt 0:00:04]} Qxe7 {[%emt 0:00:05]} 18. Qa5 {[%emt 0:00:01]} Rc6 {[%emt 0:00:25]} 19. Kb1 {[%emt 0:00:24]} Rfc8 {[%emt 0:01:18]} 20. Rd2 Qd8 {[%emt 0:12:18]} 21. Qxd8+ {[%emt 0:08:53]} Rxd8 {[%emt 0:13:08]} 22. Be2 {[%emt 0:26:53]} Ne8 {[%emt 0:04:28]} 23. f4 {[%emt 0:11:13]} f6 {[%emt 0:04:39]} 24. Rhd1 Rdc8 {[%emt 0:03:54]} 25. h4 {[%emt 0:14:19]} Kf8 26. Bh5 {[%emt 0:09:11]} Ke7 {[%emt 0:13:48]} 27. Rg1 {[%emt 0:00:23]} g6 {[%emt 0:04:27]} 28. Bf3 Rc4 29. h5 {[%emt 0:11:24]} exf4 {[%emt 0:10:57]} 30. Bxf4 {[%emt 0:01:54]} g5 {[%emt 0:00:36]} 31. Bh2 {[%emt 1:31:24]} h6 {[%emt 1:31:12]} 32. Re1 R4c5 {[%emt 0:03:27]} 33. Re3 {[%emt 0:07:00]} g4 {[%emt 0:02:22]} 34. Be2 {[%emt 0:01:49]} Rxh5 {[%emt 0:02:36]} 35. Bf1 {[%emt 0:06:10]} Ra5 {[%emt 0:01:10]} 36. b3 {[%emt 0:01:26]} h5 {[%emt 0:00:51]} 37. Bg3 {[%emt 0:00:23]} Rd8 {[%emt 0:10:57]} 38. Rd4 {[%emt 0:04:27]} Nc7 {[%emt 0:01:55]} 39. Rb4 {[%emt 0:00:52]} Rg5 {[%emt 0:01:35]} 40. Rb7 {[%emt 0:00:00]} Rd7 41. a4 Rg8 {[%emt 0:00:00]} 42. Rc3 {[%emt 0:00:00]} h4 {[%emt 0:00:00]} 0-1

[Event "GER-chT Youth Countries 2020"]
[Site "Berlin"]
[Date "2020.10.02"]
[Round "4"]
[White "Bashylina, Luisa"]
[Black "Herrmann, Jakob"]
[Result "1-0"]
[ECO "B10"]
[WhiteElo "2005"]
[BlackElo "1504"]
[Annotator "ChessBase"]
[PlyCount "58"]
[EventDate "2020.09.30"]
[EventType "team-tourn"]
[EventRounds "7"]
[EventCountry "GER"]
[SourceTitle "playchess.com"]
[Source "ChessBase"]
[SourceQuality "1"]
[TimeControl "30/5400+30:0"]

1. e4 {[%emt 0:00:00]} c6 {[%emt 0:00:00]} 2. Nc3 {[%emt 0:00:00]} d5 {[%emt 0:00:00]} 3. Qf3 {[%emt 0:00:00]} dxe4 {[%emt 0:13:22]} 4. Nxe4 {[%emt 0:00:04]} Nd7 {[%emt 0:00:42]} 5. d4 {[%emt 0:01:06]} Ndf6 {[%emt 0:01:41]} 6. c3 {[%emt 0:00:35]} Nxe4 {[%emt 0:00:10]} 7. Qxe4 {[%emt 0:00:04]} Nf6 {[%emt 0:00:07]} 8. Qc2 {[%emt 0:00:04]} Bg4 {[%emt 0:02:07]} 9. Bd3 {[%emt 0:00:58]} e6 {[%emt 0:00:30]} 10. Ne2 {[%emt 0:00:21]} Be7 {[%emt 0:02:51]} 11. Ng3 {[%emt 0:05:10]} Qd5 {[%emt 0:08:31]} 12. f3 {[%emt 0:04:18]} Bh5 {[%emt 0:00:25]} 13. Nxh5 {[%emt 0:00:32]} Qxh5 {[%emt 0:00:27]} 14. Bd2 {[%emt 0:24:33]} Qa5 {[%emt 0:13:04]} 15. O-O {[%emt 0:12:21]} Rd8 {[%emt 0:12:23]} 16. c4 {[%emt 0:08:16]} Qb6 {[%emt 0:01:55]} 17. Be3 {[%emt 0:03:47]} c5 {[%emt 0:02:25]} 18. dxc5 {[%emt 0:10:43]} Bxc5 {[%emt 0:00:17]} 19. Bxc5 {[%emt 0:01:51]} Qxc5+ {[%emt 0:00:13]} 20. Kh1 {[%emt 0:00:21]} O-O {[%emt 0:00:33]} 21. a3 {[%emt 0:01:38]} Rd7 {[%emt 0:09:17]} 22. b4 {[%emt 0:00:52]} Qe3 {[%emt 0:01:08]} 23. Rfd1 {[%emt 0:03:22]} Rfd8 {[%emt 0:00:54]} 24. Bf1 {[%emt 0:01:28]} Rd2 {[%emt 0:04:24]} 25. Rxd2 {[%emt 0:00:05]} Rxd2 {[%emt 0:00:11]} 26. Qc1 {[%emt 0:00:44]} Qd4 {[%emt 0:03:14]} 27. b5 {[%emt 0:03:44]} e5 {[%emt 0:02:00]} 28. c5 {[%emt 0:00:26]} Nh5 {[%emt 0:07:21]} 29. c6 {[%emt 0:01:44]} Qd6 {[%emt 0:00:13]} 1-0

[Event "GER-chT Youth Countries 2020"]
[Site "Berlin"]
[Date "2020.10.02"]
[Round "4"]
[White "Poetsch, Leonore"]
[Black "Kluehs, Gustaf"]
[Result "1/2-1/2"]
[ECO "C01"]
[WhiteElo "1984"]
[BlackElo "1827"]
[Annotator "ChessBase"]
[PlyCount "84"]
[EventDate "2020.09.30"]
[EventType "team-tourn"]
[EventRounds "7"]
[EventCountry "GER"]
[SourceTitle "playchess.com"]
[Source "ChessBase"]
[SourceQuality "1"]
[TimeControl "30/5400+30:0"]

1. e4 {[%emt 0:00:00]} e6 {[%emt 0:00:00]} 2. d4 {[%emt 0:00:00]} d5 {[%emt 0:00:00]} 3. exd5 {[%emt 0:00:28]} exd5 {[%emt 0:00:00]} 4. Bd3 {[%emt 0:00:24]} Nc6 {[%emt 0:00:14]} 5. c3 {[%emt 0:00:18]} Bd6 {[%emt 0:00:10]} 6. Ne2 {[%emt 0:00:38]} Nge7 {[%emt 0:00:43]} 7. Bf4 {[%emt 0:01:26]} Bg4 {[%emt 0:02:25]} 8. Bxd6 {[%emt 0:02:05]} Qxd6 {[%emt 0:01:32]} 9. Qc2 {[%emt 0:03:18]} O-O-O {[%emt 0:10:02]} 10. Nd2 {[%emt 0:04:15]} h5 {[%emt 0:05:37]} 11. f3 {[%emt 0:01:56]} Be6 {[%emt 0:01:32]} 12. O-O-O {[%emt 0:05:05]} g6 {[%emt 0:03:28]} 13. Nb3 {[%emt 0:11:08]} b6 {[%emt 0:05:00]} 14. Kb1 {[%emt 0:05:33]} Bf5 {[%emt 0:01:24]} 15. Nbc1 {[%emt 0:02:00]} Na5 {[%emt 0:03:34]} 16. Qa4 {[%emt 0:05:45]} Qd7 {[%emt 0:04:21]} 17. Qxd7+ {[%emt 0:05:24]} Kxd7 {[%emt 0:00:12]} 18. b3 {[%emt 0:02:26]} c6 {[%emt 0:02:06]} 19. Ng3 {[%emt 0:04:45]} Be6 {[%emt 0:05:51]} 20. Rhe1 {[%emt 0:04:13]} Nb7 {[%emt 0:03:34]} 21. Re2 {[%emt 0:05:35]} Nd6 {[%emt 0:03:36]} 22. Bc2 {[%emt 0:07:05]} h4 {[%emt 0:04:20]} 23. Nf1 {[%emt 0:00:13]} Nef5 {[%emt 0:01:27]} 24. Nd3 {[%emt 0:02:56]} f6 {[%emt 0:01:31]} 25. Nf4 {[%emt 0:03:40]} Bf7 {[%emt 0:00:50]} 26. Ne3 {[%emt 0:03:04]} Nxe3 {[%emt 0:00:39]} 27. Rxe3 {[%emt 0:00:06]} g5 {[%emt 0:00:04]} 28. Nd3 {[%emt 0:02:18]} Rde8 {[%emt 0:00:27]} 29. Rde1 {[%emt 0:01:25]} Rxe3 {[%emt 0:05:22]} 30. Rxe3 {[%emt 0:00:06]} Re8 {[%emt 0:00:02]} 31. Rxe8 {[%emt 1:31:07]} Kxe8 {[%emt 1:30:38]} 32. Kc1 {[%emt 0:04:46]} Bg6 {[%emt 0:03:27]} 33. Kd2 {[%emt 0:01:20]} Bxd3 {[%emt 0:00:11]} 34. Bxd3 {[%emt 0:01:02]} Ke7 {[%emt 0:00:42]} 35. g3 {[%emt 0:03:07]} hxg3 {[%emt 0:00:30]} 36. hxg3 {[%emt 0:00:04]} Ke6 {[%emt 0:02:04]} 37. g4 {[%emt 0:03:18]} Ne8 {[%emt 0:03:34]} 38. a4 {[%emt 0:02:48]} Kd6 {[%emt 0:00:17]} 39. b4 {[%emt 0:02:35]} a5 {[%emt 0:01:48]} 40. Ke3 {[%emt 0:01:25]} Nc7 {[%emt 0:01:46]} 41. f4 {[%emt 0:00:00]} Ne6 {[%emt 0:00:00]} 42. fxg5 {[%emt 0:00:00]} fxg5 {[%emt 0:00:00]} 1/2-1/2

[Event "GER-chT Youth Countries 2020"]
[Site "Berlin"]
[Date "2020.10.02"]
[Round "4"]
[White "Zackrisson, Peter"]
[Black "Viet, Silas"]
[Result "0-1"]
[ECO "B66"]
[WhiteElo "1947"]
[BlackElo "1846"]
[Annotator "ChessBase"]
[PlyCount "94"]
[EventDate "2020.09.30"]
[EventType "team-tourn"]
[EventRounds "7"]
[EventCountry "GER"]
[SourceTitle "playchess.com"]
[Source "ChessBase"]
[SourceQuality "1"]
[TimeControl "30/5400+30:0"]

1. e4 {[%emt 0:00:00]} c5 {[%emt 0:00:00]} 2. Nf3 {[%emt 0:00:00]} d6 {[%emt 0:00:00]} 3. d4 {[%emt 0:00:00]} cxd4 {[%emt 0:00:00]} 4. Nxd4 {[%emt 0:00:05]} Nf6 {[%emt 0:00:00]} 5. Nc3 {[%emt 0:00:13]} Nc6 {[%emt 0:00:01]} 6. Bg5 {[%emt 0:00:36]} e6 {[%emt 0:00:07]} 7. Qd2 {[%emt 0:00:33]} a6 {[%emt 0:00:10]} 8. f4 {[%emt 0:00:28]} Bd7 {[%emt 0:00:42]} 9. O-O-O {[%emt 0:02:24]} b5 {[%emt 0:00:10]} 10. Bxf6 {[%emt 0:06:02]} gxf6 {[%emt 0:00:12]} 11. f5 {[%emt 0:02:59]} Qb6 {[%emt 0:05:49]} 12. Nxc6 {[%emt 0:08:32]} Bxc6 {[%emt 0:00:18]} 13. Kb1 {[%emt 0:00:11]} b4 {[%emt 0:43:52]} 14. Ne2 {[%emt 0:00:25]} Bxe4 {[%emt 0:05:08]} 15. fxe6 {[%emt 0:02:29]} fxe6 {[%emt 0:02:37]} 16. Ng3 {[%emt 0:07:49]} Bg6 {[%emt 0:06:20]} 17. Qf4 {[%emt 0:16:03]} Kf7 {[%emt 0:13:58]} 18. Bd3 {[%emt 0:10:08]} d5 {[%emt 0:03:42]} 19. Rhf1 {[%emt 0:03:26]} Be7 {[%emt 0:00:45]} 20. h4 {[%emt 0:00:28]} a5 {[%emt 0:06:18]} 21. Qh6 {[%emt 0:09:52]} a4 {[%emt 0:06:25]} 22. Nh5 {[%emt 0:01:25]} Rag8 {[%emt 0:03:22]} 23. g4 {[%emt 0:05:59]} b3 {[%emt 0:00:49]} 24. cxb3 {[%emt 0:08:57]} axb3 {[%emt 0:00:14]} 25. a3 {[%emt 0:00:05]} Bxd3+ {[%emt 0:00:22]} 26. Rxd3 {[%emt 0:00:19]} Rg6 {[%emt 0:00:08]} 27. Qf4 {[%emt 0:00:17]} Qb5 {[%emt 0:01:02]} 28. Rdf3 {[%emt 0:00:48]} Qc4 {[%emt 0:00:45]} 29. g5 {[%emt 0:04:44]} f5 {[%emt 0:00:37]} 30. Qh2 {[%emt 0:00:08]} Rc8 {[%emt 0:00:21]} 31. Re1 {[%emt 1:31:10]} Qc2+ {[%emt 1:30:38]} 32. Qxc2 {[%emt 0:00:12]} bxc2+ {[%emt 0:00:19]} 33. Kc1 {[%emt 0:00:07]} Bd6 {[%emt 0:00:22]} 34. Re2 {[%emt 0:01:18]} h6 {[%emt 0:00:19]} 35. Rg2 {[%emt 0:01:35]} Rh8 {[%emt 0:01:02]} 36. Nf4 {[%emt 0:02:37]} Bxf4+ {[%emt 0:00:15]} 37. Rxf4 {[%emt 0:00:07]} hxg5 {[%emt 0:00:08]} 38. hxg5 {[%emt 0:00:06]} Rh5 {[%emt 0:00:25]} 39. a4 {[%emt 0:00:24]} Rgxg5 {[%emt 0:00:24]} 40. Rxg5 {[%emt 0:00:33]} Rxg5 {[%emt 0:00:06]} 41. a5 {[%emt 0:00:41]} e5 {[%emt 0:01:09]} 42. Rf1 {[%emt 0:04:58]} Kf6 {[%emt 0:01:08]} 43. a6 {[%emt 0:00:00]} d4 {[%emt 0:00:00]} 44. Kxc2 {[%emt 0:00:00]} e4 {[%emt 0:00:00]} 45. a7 {[%emt 0:00:00]} Rg8 {[%emt 0:00:00]} 46. Ra1 {[%emt 0:00:00]} Ra8 {[%emt 0:00:00]} 47. b4 {[%emt 0:00:00]} Ke6 {[%emt 0:00:00]} 0-1